bitfinex/quotes_SOLUSD_20250617
["timestamp","ask_amount","ask_price","bid_price","bid_amount"]
[1750131689482,5.89008732,153.38,153.34,6.3681]
[1750131689827,5.89008732,153.38,153.34,12.25818732]
[1750131689828,27.02,153.38,153.34,12.25818732]
[1750131689983,27.02,153.38,153.35,5.89008732]
[1750131690179,32.91008732,153.38,153.34,5.89008732]
[1750131690373,32.91008732,153.38,153.31,5.89008732]
[1750131690374,5.89008732,153.35,153.31,5.89008732]
[1750131690578,5.89008732,153.34,153.3,1.46606332]
[1750131691521,6.52188091,153.33,153.3,1.46606332]
[1750131692279,27.1,153.32,153.3,1.46606332]
[1750131694215,33.62239374,153.32,153.3,1.46606332]
[1750131697082,39.51248106,153.32,153.3,1.46606332]
[1750131697490,50.68189775,153.31,153.3,1.46606332]
[1750131697687,24.96622089,153.31,153.3,1.46606332]
[1750131698495,6.52239374,153.32,153.3,1.46606332]
[1750131698814,33.08,153.31,153.3,1.46606332]
[1750131700811,39.60273172,153.31,153.3,1.46606332]
[1750131702906,45.49281904,153.31,153.3,1.46606332]
[1750131703311,64.28462947,153.31,153.3,1.46606332]
[1750131704603,5.98,153.31,153.3,1.46606332]
[1750131704817,5.98,153.31,153.3,7.35615064]
[1750131705014,24.21753812,153.35,153.3,20.38290784]
[1750131705190,24.21753812,153.35,153.34,5.89008732]
[1750131705909,51.33753812,153.35,153.3,7.96966332]
[1750131706095,63.74898773,153.35,153.3,13.85975064]
[1750131706295,63.74898773,153.35,153.3,7.96966332]
[1750131706501,63.74898773,153.35,153.31,5.89008732]
[1750131708092,57.85890041,153.35,153.31,5.89008732]
[1750131710104,57.85890041,153.35,153.32,5.89008732]
[1750131710597,24.21753812,153.35,153.34,5.89008732]
[1750131710802,51.39753812,153.35,153.34,5.89008732]
[1750131711921,24.21753812,153.35,153.34,5.89008732]
[1750131712099,51.37753812,153.35,153.34,5.89008732]
[1750131712411,51.37753812,153.35,153.33,5.89008732]
[1750131712793,24.21753812,153.35,153.3,14.49274525]
[1750131712993,51.37753812,153.35,153.33,5.89008732]
[1750131714523,51.37753812,153.35,153.34,5.89008732]
[1750131716919,24.21753812,153.35,153.32,1.5281]
[1750131717093,27.12,153.38,153.34,5.89008732]
[1750131717298,27.12,153.38,153.35,5.89008732]
[1750131718016,33.6398562,153.38,153.34,5.89008732]
[1750131718205,39.52994352,153.38,153.34,5.89008732]
[1750131718714,33.01008732,153.38,153.34,5.89008732]
[1750131719013,12.40993864,153.38,153.34,5.89008732]
[1750131719219,27.1,153.37,153.35,5.89008732]
[1750131722001,27.1,153.37,153.36,5.89008732]
[1750131724919,27.06,153.38,153.36,5.89008732]
[1750131725128,12.49817238,153.42,153.37,5.89008732]
[1750131725423,27.06,153.41,153.39,5.89008732]
[1750131725823,12.49817238,153.42,153.4,5.89008732]
[1750131726201,27.04,153.41,153.4,5.89008732]
[1750131726425,27.04,153.41,153.39,5.89008732]
[1750131726922,33.55851542,153.41,153.39,5.89008732]
[1750131727117,33.55851542,153.41,153.38,5.89008732]
[1750131729028,33.55851542,153.41,153.39,5.89008732]
[1750131729436,27.04,153.41,153.39,5.89008732]
[1750131730145,12.49818637,153.42,153.39,5.89008732]
[1750131730432,27.02,153.41,153.39,5.89008732]
[1750131731131,27.02,153.41,153.36,6.4153]
[1750131731431,27.02,153.41,153.38,5.89008732]
[1750131731610,27.02,153.41,153.39,5.89008732]
[1750131731929,5.98,153.42,153.39,5.89008732]
[1750131732129,5.98,153.42,153.4,5.89008732]
[1750131732130,39.55819232,153.42,153.4,5.89008732]
[1750131732315,5.98,153.42,153.41,5.89008732]
[1750131732516,33.04,153.42,153.41,5.89008732]
[1750131732742,5.98,153.42,153.41,5.89008732]
[1750131732918,5.98,153.42,153.37,1.5316]
[1750131733232,5.98,153.42,153.41,5.89008732]
[1750131733826,12.49805501,153.42,153.38,5.89008732]
[1750131734021,12.49805501,153.42,153.39,5.89008732]
[1750131734229,27.04,153.41,153.39,5.89008732]
[1750131735235,27.04,153.41,153.38,5.89008732]
[1750131735616,27.04,153.41,153.37,8.05176388]
[1750131735830,27.04,153.41,153.39,5.89008732]
[1750131736738,5.98,153.42,153.4,5.89008732]
[1750131737032,27.02,153.41,153.4,5.89008732]
[1750131737836,33.0,153.42,153.39,5.89008732]
[1750131738436,39.51806055,153.42,153.39,5.89008732]
[1750131738732,39.51806055,153.42,153.38,5.89008732]
[1750131739145,45.40814787,153.42,153.37,5.89008732]
[1750131739634,39.51806055,153.42,153.39,5.89008732]
[1750131743443,39.51806055,153.42,153.37,6.5201522]
[1750131743444,33.0,153.42,153.4,5.89008732]
[1750131743948,5.98,153.42,153.41,5.89008732]
[1750131744340,5.98,153.42,153.4,5.89008732]
[1750131744539,27.0,153.41,153.36,38.93588959]
[1750131744756,27.0,153.41,153.38,5.89008732]
[1750131746177,33.51849964,153.41,153.38,5.89008732]
[1750131746673,5.89008732,153.4,153.36,12.30538732]
[1750131746969,32.89008732,153.39,153.34,5.89008732]
[1750131747470,32.89008732,153.39,153.35,5.89008732]
[1750131748365,33.51945833,153.39,153.35,5.89008732]
[1750131748565,39.40954565,153.39,153.35,5.89008732]
[1750131749575,33.51945833,153.39,153.35,5.89008732]
[1750131750674,39.40954565,153.39,153.35,5.89008732]
[1750131751171,33.51945833,153.39,153.35,5.89008732]
[1750131751554,27.0,153.39,153.36,5.89008732]
[1750131751780,27.0,153.39,153.37,5.89008732]
[1750131752879,12.49815074,153.42,153.38,5.89008732]
[1750131753049,26.96,153.41,153.38,5.89008732]
[1750131754572,33.47860379,153.41,153.38,5.89008732]
[1750131754755,6.51860379,153.41,153.38,5.89008732]
[1750131754959,26.96,153.4,153.38,5.89008732]
[1750131755456,26.96,153.4,153.33,6.80620405]
[1750131755652,32.85008732,153.4,153.36,5.89008732]
[1750131756071,26.96,153.4,153.36,5.89008732]
[1750131756375,32.85008732,153.4,153.36,5.89008732]
[1750131756554,6.51932981,153.39,153.36,5.89008732]
[1750131756750,26.94,153.38,153.36,5.89008732]
[1750131758467,33.45982436,153.38,153.35,5.89008732]
[1750131760078,26.94,153.38,153.35,5.89008732]
[1750131761155,26.94,153.38,153.37,5.89008732]
[1750131761757,26.94,153.38,153.36,5.89008732]
[1750131764480,26.94,153.38,153.35,5.89008732]
[1750131764665,26.94,153.38,153.36,5.89008732]
[1750131766267,26.94,153.38,153.37,5.89008732]
[1750131767755,26.94,153.38,153.36,5.89008732]
[1750131769381,26.94,153.38,153.33,6.52173852]
[1750131769683,26.94,153.38,153.36,5.89008732]
[1750131771187,26.94,153.38,153.37,5.89008732]
[1750131771698,26.94,153.41,153.37,5.89008732]
[1750131771884,26.94,153.41,153.4,5.89008732]
[1750131772187,26.94,153.41,153.39,5.89008732]
[1750131772482,26.94,153.41,153.38,5.89008732]
[1750131773499,33.45856098,153.41,153.38,5.89008732]
[1750131774682,26.94,153.4,153.38,5.89008732]
[1750131775297,26.94,153.4,153.39,5.89008732]
[1750131776385,32.84,153.42,153.39,5.89008732]
[1750131776588,32.84,153.42,153.41,5.89008732]
[1750131776589,5.9,153.42,153.41,5.89008732]
[1750131776762,32.84,153.42,153.41,5.89008732]
[1750131777993,32.84,153.42,153.4,5.89008732]
[1750131780175,5.9,153.42,153.4,5.89008732]
[1750131780380,32.84,153.42,153.4,5.89008732]
[1750131780776,5.9,153.42,153.41,5.89008732]
[1750131780964,4.87534447,153.45,153.41,5.89008732]
[1750131781167,4.87534447,153.46,153.44,11.78017464]
[1750131781387,5.9,153.47,153.45,5.89008732]
[1750131781669,5.9,153.47,153.44,12.40778732]
[1750131781670,4.87534447,153.5,153.46,5.89008732]
[1750131781867,5.9,153.52,153.5,6.51465798]
[1750131782169,5.9,153.52,153.51,5.89008732]
[1750131782785,5.89008732,153.59,153.51,5.89008732]
[1750131782984,5.9,153.57,153.55,5.89008732]
[1750131783285,26.94,153.56,153.54,5.89008732]
[1750131783788,26.94,153.56,153.55,5.89008732]
[1750131784292,26.94,153.56,153.54,5.89008732]
[1750131784592,33.45219883,153.56,153.53,5.89008732]
[1750131785165,39.34228615,153.56,153.52,5.89008732]
[1750131785389,39.34228615,153.56,153.51,5.89008732]
[1750131785781,39.34228615,153.56,153.52,5.89008732]
[1750131785981,33.45219883,153.56,153.52,5.89008732]
[1750131786173,39.34228615,153.56,153.52,5.89008732]
[1750131787282,39.34228615,153.56,153.51,5.89008732]
[1750131790701,33.45219883,153.56,153.53,5.89008732]
[1750131790994,33.45219883,153.56,153.55,5.89008732]
[1750131790995,26.92,153.56,153.55,5.89008732]
[1750131791871,26.92,153.56,153.53,5.89008732]
[1750131792082,32.81008732,153.56,153.52,5.89008732]
[1750131792392,33.43253596,153.56,153.53,5.89008732]
[1750131793699,33.43253596,153.56,153.52,5.89008732]
[1750131793873,33.43253596,153.56,153.47,6.0849]
[1750131793874,26.92,153.55,153.51,5.89008732]
[1750131795102,6.51296079,153.54,153.51,5.89008732]
[1750131795284,26.92,153.53,153.52,5.89008732]
[1750131795479,26.92,153.53,153.47,12.60074843]
[1750131795691,26.92,153.53,153.51,5.89008732]
[1750131797104,39.32364393,153.53,153.49,5.89008732]
[1750131797278,39.32364393,153.53,153.48,5.89008732]
[1750131797674,39.32364393,153.53,153.46,5.89008732]
[1750131797675,5.89008732,153.51,153.46,5.89008732]
[1750131797987,32.8,153.5,153.46,5.89008732]
[1750131798179,38.69008732,153.5,153.46,5.89008732]
[1750131799078,6.51508241,153.49,153.46,5.89008732]
[1750131799298,26.92,153.48,153.46,5.89008732]
[1750131801401,33.43558133,153.48,153.45,5.89008732]
[1750131802505,32.8,153.5,153.47,5.89008732]
[1750131802689,5.88,153.5,153.48,5.89008732]
[1750131802887,32.8,153.5,153.48,5.89008732]
[1750131803397,39.31467921,153.5,153.48,5.89008732]
[1750131804206,39.31467921,153.5,153.47,5.89008732]
[1750131804388,32.8,153.5,153.48,5.89008732]
[1750131806196,39.31467553,153.5,153.48,5.89008732]
[1750131806515,39.31467553,153.5,153.47,5.89008732]
[1750131806889,39.31467553,153.5,153.46,5.89008732]
[1750131807087,45.20476285,153.5,153.46,5.89008732]
[1750131810099,39.31467553,153.5,153.46,5.89008732]
[1750131810311,45.20476285,153.5,153.46,5.89008732]
[1750131812587,39.31467553,153.5,153.46,5.89008732]
[1750131814583,32.8,153.5,153.47,5.89008732]
[1750131814807,32.8,153.5,153.48,5.89008732]
[1750131815898,5.88,153.5,153.49,5.89008732]
[1750131816104,32.8,153.5,153.49,5.89008732]
[1750131816297,32.8,153.5,153.46,6.51625457]
[1750131816604,32.8,153.5,153.49,5.89008732]
[1750131818091,5.88,153.5,153.49,5.89008732]
[1750131818502,32.8,153.5,153.49,5.89008732]
[1750131819991,39.3146871,153.5,153.48,5.89008732]
[1750131820810,32.78,153.5,153.48,5.89008732]
[1750131821517,31.88,153.55,153.49,5.89008732]
[1750131821819,31.88,153.55,153.46,6.51626902]
[1750131821820,26.9,153.54,153.52,5.89008732]
[1750131822005,33.41297564,153.54,153.51,5.89008732]
[1750131822410,38.3926831,153.55,153.52,5.89008732]
[1750131822601,5.88,153.55,153.53,5.89008732]
[1750131822796,32.78,153.55,153.53,5.89008732]
[1750131823404,5.88,153.55,153.54,5.89008732]
[1750131823609,5.88,153.55,153.52,5.89008732]
[1750131823811,5.88,153.55,153.49,6.0369]
[1750131824025,5.89008732,153.51,153.45,6.0369]
[1750131824198,26.9,153.5,153.46,5.89008732]
[1750131824400,26.9,153.5,153.48,5.89008732]
[1750131825922,33.41470837,153.5,153.46,5.89008732]
[1750131827731,33.41470837,153.5,153.47,5.89008732]
[1750131828436,39.29470837,153.5,153.47,5.89008732]
[1750131828808,39.29470837,153.5,153.46,5.89008732]
[1750131834015,45.18479569,153.5,153.45,11.92698732]
[1750131837543,45.18479569,153.5,153.46,5.89008732]
[1750131838238,39.29470837,153.5,153.46,5.89008732]
[1750131838421,26.9,153.49,153.46,5.89008732]
[1750131839622,33.41532233,153.49,153.46,5.89008732]
[1750131841148,33.41532233,153.49,153.45,11.92698732]
[1750131841650,33.41532233,153.49,153.44,77.66160726]
[1750131841651,5.89008732,153.46,153.44,76.05600726]
[1750131841868,26.9,153.45,153.44,76.05600726]
[1750131842153,26.0,153.44,153.38,11.95068732]
[1750131842315,5.89008732,153.42,153.38,11.95068732]
[1750131842517,26.9,153.41,153.38,11.95068732]
[1750131843337,26.9,153.41,153.4,5.89008732]
[1750131844126,32.78,153.43,153.4,12.40899214]
[1750131844331,32.78,153.43,153.42,5.89008732]
[1750131846054,32.78,153.43,153.41,5.89008732]
[1750131846945,32.78,153.43,153.42,5.89008732]
[1750131848251,7.44438732,153.48,153.42,5.89008732]
[1750131848252,5.88,153.48,153.42,5.89008732]
[1750131848428,26.9,153.47,153.46,5.89008732]
[1750131849230,26.9,153.47,153.45,5.89008732]
[1750131849435,33.4160998,153.47,153.44,5.89008732]
[1750131849640,26.9,153.46,153.44,5.89008732]
[1750131849857,32.79008732,153.46,153.4,1.6017]
[1750131850027,5.89008732,153.45,153.4,5.89008732]
[1750131850229,26.9,153.44,153.4,5.89008732]
[1750131850431,26.9,153.44,153.41,5.89008732]
[1750131850744,26.9,153.44,153.38,12.57994528]
[1750131850947,26.9,153.44,153.4,5.89008732]
[1750131851841,6.51763018,153.43,153.4,5.89008732]
[1750131852345,26.9,153.42,153.4,5.89008732]
[1750131852531,26.9,153.42,153.38,6.0606]
[1750131852733,26.9,153.42,153.36,1.6017]
[1750131852734,5.88,153.41,153.36,1.6017]
[1750131852934,5.89008732,153.39,153.35,5.89008732]
[1750131853151,26.9,153.38,153.36,5.89008732]
[1750131855530,26.9,153.38,153.34,12.79486309]
[1750131855866,26.9,153.38,153.36,5.89008732]
[1750131856650,26.9,153.38,153.37,5.89008732]
[1750131857759,33.41975485,153.38,153.37,5.89008732]
[1750131858061,39.30984217,153.38,153.33,5.89008732]
[1750131858257,5.89008732,153.37,153.33,5.89008732]
[1750131858431,6.52103032,153.35,153.3,8.06816332]
[1750131858636,6.52103032,153.35,153.32,5.89008732]
[1750131859163,6.52103032,153.35,153.33,5.89008732]
[1750131859340,6.52103032,153.35,153.32,5.89008732]
[1750131859735,6.52103032,153.35,153.33,5.89008732]
[1750131860156,33.42067773,153.36,153.33,5.89008732]
[1750131860868,6.51946565,153.39,153.35,5.89008732]
[1750131861038,32.78,153.38,153.37,5.89008732]
[1750131861239,32.78,153.38,153.36,5.89008732]
[1750131862554,39.30007582,153.38,153.35,5.89008732]
[1750131864168,5.88,153.38,153.37,5.89008732]
[1750131864874,5.88,153.38,153.36,5.89008732]
[1750131866960,5.88,153.38,153.34,6.52137146]
[1750131866961,5.88,153.38,153.37,5.89008732]
[1750131867460,5.88,153.38,153.36,5.89008732]
[1750131873651,12.39993155,153.38,153.35,5.89008732]
[1750131873865,26.9,153.37,153.33,5.89008732]
[1750131874053,26.9,153.37,153.31,26.0]
[1750131874251,26.9,153.37,153.33,5.89008732]
[1750131874866,33.42053556,153.37,153.33,5.89008732]
[1750131877070,39.31062288,153.37,153.31,6.52258568]
[1750131877271,39.31062288,153.37,153.33,5.89008732]
[1750131878677,5.89008732,153.35,153.3,8.06816332]
[1750131878858,26.9,153.34,153.3,13.95825064]
[1750131879169,26.9,153.34,153.31,5.89008732]
[1750131879371,26.9,153.34,153.3,13.95825064]
[1750131880183,32.79008732,153.34,153.3,1.46606332]
[1750131880394,6.52188091,153.33,153.3,1.46606332]
[1750131880876,33.42160001,153.34,153.3,7.35615064]
[1750131881266,39.31168733,153.34,153.3,7.35615064]
[1750131881464,26.9,153.34,153.32,5.89008732]
[1750131881775,26.9,153.36,153.33,5.89008732]
[1750131881972,26.9,153.36,153.35,5.89008732]
[1750131883365,12.39990641,153.38,153.35,5.89008732]
[1750131883567,26.9,153.37,153.36,5.89008732]
[1750131883779,12.39990641,153.38,153.36,5.89008732]
[1750131883949,39.29990641,153.38,153.36,5.89008732]
[1750131884155,39.27990641,153.38,153.36,5.89008732]
[1750131885257,5.88,153.38,153.37,5.89008732]
[1750131888383,5.88,153.38,153.35,6.52101173]
[1750131888593,5.88,153.38,153.37,5.89008732]
[1750131891687,5.88,153.38,153.32,32.1598]
[1750131891880,5.88,153.38,153.36,5.89008732]
[1750131892874,5.88,153.38,153.37,5.89008732]
[1750131900168,5.88,153.38,153.37,12.41026727]
[1750131900678,13.90385914,153.4,153.37,12.41026727]
[1750131900883,13.90385914,153.4,153.39,5.89008732]
[1750131902786,40.78385914,153.4,153.38,5.89008732]
[1750131902985,40.78385914,153.4,153.39,5.89008732]
[1750131903381,13.90385914,153.4,153.39,5.89008732]
[1750131903585,13.90385914,153.4,153.38,5.89008732]
[1750131904294,13.90385914,153.4,153.37,5.89008732]
[1750131904503,26.86,153.39,153.37,5.89008732]
[1750131905416,39.2694281,153.39,153.35,5.89008732]
[1750131906396,39.2694281,153.39,153.34,5.89008732]
[1750131906579,5.89008732,153.38,153.34,5.89008732]
[1750131906775,5.89008732,153.37,153.32,5.89008732]
[1750131906982,38.61008732,153.36,153.32,5.89008732]
[1750131907184,45.13073032,153.36,153.32,5.89008732]
[1750131907487,39.240643,153.36,153.32,5.89008732]
[1750131908204,32.72,153.36,153.32,5.89008732]
[1750131908401,45.13074983,153.36,153.3,1.46606332]
[1750131908587,5.89008732,153.35,153.3,7.35615064]
[1750131909176,12.41117437,153.35,153.31,5.89008732]
[1750131909377,6.52108705,153.35,153.31,5.89008732]
[1750131909594,32.72,153.36,153.33,5.89008732]
[1750131909906,5.86,153.36,153.35,5.89008732]
[1750131911982,5.86,153.36,153.34,6.5211567]
[1750131912186,5.86,153.36,153.35,5.89008732]
[1750131915676,26.86,153.38,153.35,5.89008732]
[1750131917577,33.37982325,153.38,153.35,5.89008732]
[1750131920605,5.89008732,153.37,153.33,5.89008732]
[1750131920909,26.86,153.36,153.33,5.89008732]
[1750131921487,26.86,153.36,153.34,5.89008732]
[1750131921812,26.86,153.36,153.32,6.52217009]
[1750131921813,26.86,153.36,153.35,5.89008732]
[1750131922192,5.84,153.39,153.35,5.89008732]
[1750131922388,5.84,153.39,153.36,5.89008732]
[1750131922588,5.84,153.39,153.37,5.89008732]
[1750131922788,5.84,153.39,153.38,5.89008732]
[1750131924200,5.84,153.39,153.37,5.89008732]
[1750131924909,26.86,153.38,153.36,5.89008732]
[1750131925295,26.86,153.38,153.37,5.89008732]
[1750131926393,33.37975787,153.38,153.34,6.5472]
[1750131926595,5.89008732,153.37,153.32,5.89008732]
[1750131927424,5.89008732,153.35,153.31,5.89008732]
[1750131927627,5.89008732,153.33,153.3,1.46606332]
[1750131927794,5.89008732,153.31,153.3,1.46606332]
[1750131927991,51.54189775,153.31,153.3,1.46606332]
[1750131928205,89.22732536,153.31,153.3,1.46606332]
[1750131930399,84.34895261,153.31,153.3,1.46606332]
[1750131930599,89.21433602,153.31,153.3,1.46606332]
[1750131931195,84.34895261,153.31,153.3,1.46606332]
[1750131933623,78.45886529,153.31,153.3,1.46606332]
[1750131933814,84.34895261,153.31,153.3,1.46606332]
[1750131934014,58.34895261,153.31,153.3,1.46606332]
[1750131934915,63.20396019,153.31,153.3,1.46606332]
[1750131935638,58.34895261,153.31,153.3,1.46606332]
[1750131936034,63.20119682,153.31,153.3,1.46606332]
[1750131936335,58.34895261,153.31,153.3,1.46606332]
[1750131937616,58.20679104,153.31,153.3,1.46606332]
[1750131937836,58.34895261,153.31,153.3,1.46606332]
[1750131938949,31.48895261,153.31,153.3,1.46606332]
[1750131939132,58.34895261,153.31,153.3,1.46606332]
[1750131941051,84.34895261,153.31,153.3,1.46606332]
[1750131942453,84.06462947,153.31,153.3,1.46606332]
[1750131944163,84.34895261,153.31,153.3,1.46606332]
[1750131946140,57.48895261,153.31,153.3,1.46606332]
[1750131946331,84.34895261,153.31,153.3,1.46606332]
[1750131952238,78.45886529,153.31,153.3,1.46606332]
[1750131952452,84.34895261,153.31,153.3,1.46606332]
[1750131952834,57.48895261,153.31,153.3,1.46606332]
[1750131953035,84.34895261,153.31,153.3,1.46606332]
[1750131955756,57.48895261,153.31,153.3,1.46606332]
[1750131955958,84.32895261,153.31,153.3,1.46606332]
[1750131958752,12.36232472,153.32,153.3,1.46606332]
[1750131958956,32.68,153.31,153.3,1.46606332]
[1750131960377,5.84,153.31,153.3,1.46606332]
[1750131960555,45.09281904,153.31,153.3,1.46606332]
[1750131961164,63.88462947,153.31,153.3,1.46606332]
[1750131961358,64.16895261,153.31,153.3,1.46606332]
[1750131961562,90.16895261,153.31,153.3,1.46606332]
[1750131962251,65.20273172,153.31,153.3,1.46606332]
[1750131962443,83.99454215,153.31,153.3,1.46606332]
[1750131962644,89.88462947,153.31,153.3,1.46606332]
[1750131963264,90.16895261,153.31,153.3,1.46606332]
[1750131967580,95.02936777,153.31,153.3,1.46606332]
[1750131968081,90.16895261,153.31,153.3,1.46606332]
[1750131968271,95.03382437,153.31,153.3,1.46606332]
[1750131971557,69.03382437,153.31,153.3,1.46606332]
[1750131971855,69.03382437,153.31,153.24,5.89008732]
[1750131971856,26.0,153.28,153.24,5.89008732]
[1750131972171,31.70487176,153.27,153.24,5.89008732]
[1750131972373,4.86487176,153.26,153.23,12.43018732]
[1750131972570,26.84,153.25,153.23,6.5401]
[1750131972888,5.82,153.24,153.23,6.5401]
[1750131973578,5.82,153.24,153.23,12.43018732]
[1750131974167,5.82,153.24,153.23,6.5401]
[1750131974888,12.3457113,153.24,153.23,6.5401]
[1750131975386,12.3457113,153.24,153.2,5.89008732]
[1750131975587,26.84,153.23,153.19,12.22858732]
[1750131975763,33.36615421,153.23,153.2,5.89008732]
[1750131976466,33.36615421,153.23,153.19,6.3385]
[1750131976681,33.36615421,153.23,153.2,5.89008732]
[1750131976983,33.36615421,153.23,153.19,6.3385]
[1750131977184,33.36615421,153.23,153.21,5.89008732]
[1750131978486,33.36615421,153.23,153.2,5.89008732]
[1750131979483,5.82,153.24,153.22,5.89008732]
[1750131979792,11.96420156,153.27,153.24,8.2351]
[1750131979981,5.29760156,153.27,153.26,11.78017464]
[1750131980190,5.82,153.29,153.26,11.78017464]
[1750131980541,5.82,153.34,153.29,6.52358275]
[1750131980660,4.87658182,153.37,153.33,5.89008732]
[1750131980861,32.66,153.36,153.35,5.89008732]
[1750131982278,5.82,153.36,153.35,5.89008732]
[1750131982477,5.82,153.36,153.35,12.41111764]
[1750131982688,26.82,153.4,153.35,5.89008732]
[1750131982866,26.82,153.4,153.39,5.89008732]
[1750131984986,26.82,153.4,153.34,6.52103613]
[1750131985193,26.82,153.4,153.39,5.89008732]
[1750131985399,5.82,153.41,153.39,5.89008732]
[1750131985600,32.64,153.41,153.4,5.89008732]
[1750131986576,5.82,153.41,153.4,5.89008732]
[1750131989996,5.82,153.41,153.38,8.2262]
[1750131990180,5.82,153.41,153.39,5.89008732]
[1750131990381,5.82,153.41,153.4,5.89008732]
[1750131993993,12.33847989,153.41,153.4,5.89008732]
[1750131994887,5.82,153.41,153.4,5.89008732]
[1750132001406,5.82,153.41,153.4,12.40899214]
[1750132003492,26.8,153.45,153.4,12.40899214]
[1750132003799,26.8,153.45,153.43,5.89008732]
[1750132004189,26.8,153.45,153.44,5.89008732]
[1750132004390,32.58,153.46,153.44,5.89008732]
[1750132004587,5.8,153.46,153.45,5.89008732]
[1750132005983,5.8,153.51,153.45,5.89008732]
[1750132006180,32.58,153.51,153.5,5.89008732]
[1750132006384,5.8,153.51,153.5,5.89008732]
[1750132009402,5.8,153.51,153.49,6.51503764]
[1750132009582,5.8,153.51,153.5,5.89008732]
[1750132010779,5.8,153.51,153.5,12.4047453]
[1750132011219,5.8,153.56,153.51,7.651]
[1750132011508,5.8,153.56,153.55,5.89008732]
[1750132012013,5.8,153.6,153.55,5.89008732]
[1750132012198,5.8,153.6,153.59,5.89008732]
[1750132012593,5.8,153.6,153.58,5.89008732]
[1750132012795,32.56,153.6,153.57,5.89008732]
[1750132013018,32.56,153.6,153.59,5.89008732]
[1750132013889,32.56,153.6,153.55,0.28432314]
[1750132014214,32.56,153.6,153.59,5.89008732]
[1750132017791,6.50883014,153.64,153.59,5.89008732]
[1750132018029,26.76,153.63,153.62,5.89008732]
[1750132018320,39.06883014,153.64,153.62,5.89008732]
[1750132018821,39.06883014,153.64,153.6,5.89008732]
[1750132019193,44.95891746,153.64,153.59,5.89008732]
[1750132020212,5.89008732,153.63,153.54,9.8245919]
[1750132020523,26.76,153.62,153.59,5.89008732]
[1750132020819,5.89008732,153.61,153.57,5.89008732]
[1750132021030,5.89008732,153.6,153.51,7.651]
[1750132021201,5.89008732,153.56,153.47,6.1124]
[1750132021528,5.8,153.56,153.55,5.89008732]
[1750132022598,12.31211252,153.56,153.54,5.89008732]
[1750132023695,12.31211252,153.56,153.53,5.89008732]
[1750132024817,12.31211252,153.56,153.53,8.82160952]
[1750132026315,12.31211252,153.56,153.49,32.51497918]
[1750132026519,12.31211252,153.56,153.53,8.82160952]
[1750132026723,5.8,153.56,153.49,35.81105136]
[1750132027102,5.8,153.56,153.55,8.82160952]
[1750132027524,32.54,153.56,153.55,8.82160952]
[1750132028095,39.052141,153.56,153.54,8.82160952]
[1750132028502,32.54,153.56,153.55,8.82160952]
[1750132029719,5.8,153.56,153.55,8.82160952]
[1750132034425,12.31221845,153.56,153.53,8.82160952]
[1750132034634,12.31221845,153.56,153.5,6.51465798]
[1750132034814,12.31221845,153.56,153.54,8.82160952]
[1750132039013,7.818,153.67,153.58,26.0]
[1750132039236,5.78,153.66,153.63,8.82160952]
[1750132039448,32.52,153.66,153.64,8.82160952]
[1750132039618,32.52,153.66,153.65,8.82160952]
[1750132039929,5.78,153.66,153.65,8.82160952]
[1750132040228,5.78,153.66,153.64,8.82160952]
[1750132040424,5.78,153.66,153.65,8.82160952]
[1750132041530,5.78,153.66,153.56,19.07613357]
[1750132041531,14.60160952,153.66,153.6,8.82160952]
[1750132041832,8.82160952,153.64,153.59,8.82160952]
[1750132042020,26.74,153.63,153.6,8.82160952]
[1750132042423,8.82160952,153.62,153.54,8.0664]
[1750132042620,8.82160952,153.61,153.57,8.82160952]
[1750132042819,26.74,153.6,153.57,8.82160952]
[1750132043132,26.74,153.59,153.58,8.82160952]
[1750132044117,6.50755151,153.67,153.59,26.0]
[1750132044323,26.86231663,153.68,153.59,26.14216157]
[1750132044525,8.82160952,153.67,153.63,8.82160952]
[1750132044832,18.64964886,153.67,153.64,8.82160952]
[1750132045036,18.64964886,153.67,153.63,8.82160952]
[1750132045244,26.74,153.66,153.62,8.82160952]
[1750132045410,26.74,153.66,153.63,8.82160952]
[1750132047326,33.24795965,153.66,153.63,8.82160952]
[1750132047529,33.24795965,153.66,153.62,8.82160952]
[1750132047742,42.06956917,153.66,153.62,8.82160952]
[1750132047910,27.47125838,153.65,153.6,8.82160952]
[1750132048121,8.82160952,153.64,153.6,8.82160952]